fUSD/lending_fUSD_20240104
["ID","MTS","AMOUNT","RATE_DAILY","PERIOD"]
[310185548,1704393032484,-250.0,0.00027,3]
[310185549,1704393032494,-50.0,0.000274,2]
[310185551,1704393032509,-200.0,0.000274,2]
[310185553,1704393032518,-1466.30225307,0.00027933,2]
[310185555,1704393032530,-633.69774693,0.00027933,2]
[310185558,1704393032552,-508.63551911,0.00027933,2]
[310185560,1704393032561,-226.03370122,0.00027934,2]
[310185565,1704393032602,-254.1,0.00027934,2]
[310185568,1704393032663,-282.72629878,0.00027934,2]
[310185569,1704393032677,-324.05319569,0.00028799,2]
[310185570,1704393032687,-648.0018,0.00028899,2]
[310185571,1704393032697,-300.0,0.00029,3]
[310185572,1704393032707,-324.05319552,0.00029037,2]
[310185573,1704393032717,-324.05319552,0.00029275,2]
[310185574,1704393032727,-324.05319552,0.00029513,2]
[310185575,1704393032737,-522.38,0.00029513,2]
[310185576,1704393032747,-499.99,0.00029513,2]
[310185577,1704393032757,-324.05319552,0.00029752,2]
[310185578,1704393032767,-150.0,0.00029784,2]
[310185579,1704393032777,-250.0,0.00029815,2]
[310185580,1704393032787,-337.65,0.00029869,2]
[310185581,1704393032796,-185.83,0.00029894,2]
[310185582,1704393032805,-23900.0,0.00029894,2]
[310185583,1704393032815,-152.76,0.00029938,2]
[310185584,1704393032825,-530.04,0.00029961,2]
[310185585,1704393032835,-324.05319552,0.0002999,2]
[310185587,1704393032845,-150.0,0.00030197,2]
[310185589,1704393032854,-762.86,0.00030198,2]
[310185591,1704393032864,-324.05319552,0.00030228,2]
[310185593,1704393032874,-158.06,0.0003024,2]
[310185595,1704393032884,-324.05319552,0.00030466,2]
[310185597,1704393032894,-200.0,0.00030481,2]
[310185599,1704393032905,-415.68,0.0003059,2]
[310185601,1704393032915,-1279.73,0.00030629,2]
[310185603,1704393032925,-324.05319552,0.00030704,2]
[310185605,1704393032935,-530.04,0.00030939,2]
[310185608,1704393032945,-324.05319552,0.00030942,2]
[310185609,1704393032955,-350.0,0.00031,3]
[310185612,1704393032965,-158.5,0.00031156,2]
[310185614,1704393032975,-324.05319552,0.00031181,2]
[310185616,1704393032984,-584.32,0.00031246,2]
[310185618,1704393032994,-1981.32243321,0.00031388,2]
[310185620,1704393033007,-1063.88034958,0.00031389,2]
[310185622,1704393033016,-465.86,0.00031405,2]
[310185624,1704393033027,-324.05319552,0.00031419,2]
[310185626,1704393033036,-2057.45006628,0.00031485,4]
[310185628,1704393033046,-424.43680418,0.00031486,4]
[310185629,1704393033056,-325.4235799,0.00031486,4]
[310185630,1704393033067,-2986.44719304,0.00031486,4]
[310185631,1704393033078,-55323.28160674,0.00031487,4]
[310185632,1704393033088,-162204.23778068,0.00031488,4]
[310185633,1704393033098,-5880.92193598,0.00031489,30]
[310185634,1704393033109,-152.76,0.00031498,2]
[310185635,1704393033119,-500.0,0.000315,2]
[310185636,1704393033129,-153.08,0.00031532,2]
[310185637,1704393033139,-3180.66829188,0.00031559,2]
[310185638,1704393033150,-324.05319552,0.00031657,2]
[310185639,1704393033159,-158.5,0.00031779,2]
[310185640,1704393033169,-324.05319552,0.00031895,2]
[310185641,1704393033179,-530.04,0.00031918,2]
[310185642,1704393033189,-345.38891134,0.0003198,5]
[310185643,1704393033198,-297.44616338,0.00032,4]
[310185644,1704393033208,-497.19036025,0.00032,4]
[310185645,1704393033217,-3000.0,0.00032,2]
[310185646,1704393033227,-158.92017582,0.00032,4]
[310185647,1704393033237,-3000.0,0.0003201,2]
[310185648,1704393033247,-3000.0,0.0003202,2]
[310185649,1704393033257,-3000.0,0.0003203,2]
[310185650,1704393033267,-1981.32243321,0.00032032,2]
[310185651,1704393033276,-3000.0,0.0003204,2]
[310185652,1704393033286,-3000.0,0.0003205,2]
[310185653,1704393033296,-3000.0,0.0003206,2]
[310185654,1704393033306,-3000.0,0.0003207,2]
[310185655,1704393033315,-3000.0,0.0003208,2]
[310185656,1704393033325,-3000.0,0.0003209,2]
[310185657,1704393033334,-3000.0,0.000321,2]
[310185658,1704393033347,-3000.0,0.0003211,2]
[310185659,1704393033357,-3000.0,0.0003212,2]
[310185660,1704393033367,-3000.0,0.0003213,2]
[310185661,1704393033378,-324.05319552,0.00032133,2]
[310185662,1704393033387,-158.06,0.00032136,2]
[310185663,1704393033398,-3000.0,0.0003214,2]
[310185664,1704393033408,-4228.009647,0.0003215,2]
[310185665,1704393033418,-324.05319552,0.00032371,2]
[310185666,1704393033427,-158.5,0.00032402,2]
[310185667,1704393033437,-762.86,0.00032462,2]
[310185668,1704393033447,-345.38891133,0.00032521,6]
[310185669,1704393033457,-1063.88034957,0.000326,2]
[310185670,1704393033466,-1965.0,0.000326,2]
[310185671,1704393033476,-23340.0,0.000326,2]
[310185672,1704393033485,-324.05319552,0.0003261,2]
[310185673,1704393033494,-1981.32243321,0.00032675,2]
[310185674,1704393033504,-188.5072,0.00032676,2]
[310185675,1704393033514,-150.0,0.00032698,2]
[310185676,1704393033523,-150.0,0.00032698,2]
[310185677,1704393033533,-155.41625887,0.00032713,4]
[310185678,1704393033542,-157.85444491,0.00032713,4]
[310185679,1704393033552,-6414.95009099,0.00032714,4]
[310185680,1704393033562,-31807.35143671,0.00032715,2]
[310185681,1704393033583,-12786.81833914,0.00032715,2]
[310185682,1704393033595,-29608.79334202,0.00032715,2]
[310185683,1704393033607,-911.68,0.00032715,2]
[310185684,1704393033619,-950.0,0.00032715,2]
[310185696,1704393038388,-161.0,0.00032,2]
[310185698,1704393038398,-229.33186127,0.00032715,2]
[310185700,1704393038413,-366.85,0.00032715,2]
[310185701,1704393038499,-20420.55692086,0.00032715,2]
[310185702,1704393038508,-173.43395858,0.00032775,4]
[310185703,1704393038518,-2068.21052513,0.00032776,2]
[310185704,1704393038529,-6121.497139,0.00032776,2]
[310185705,1704393038541,-6344.52030892,0.00032776,2]
[310185706,1704393038807,-646.42422695,0.00032776,2]
[310185707,1704393038817,-2345.49457667,0.00032776,7]
[310185708,1704393038829,-1109.74982333,0.00032776,7]
[310185709,1704393038839,-3828.60605058,0.00032776,3]
[310185718,1704393039173,-23313.0032619,0.00032776,3]
[310185896,1704393040921,-807.07,0.00031478,10]
[310185899,1704393040932,-92.75064987,0.00032776,3]
[310185901,1704393040943,-390.31962067,0.00032776,3]
[310185906,1704393040981,-500.0,0.00032776,3]
[310185908,1704393040993,-1038.58311571,0.00032776,3]
[310185910,1704393041005,-2490.53561742,0.00032776,3]
[310185913,1704393041017,-1228.09211822,0.00032776,3]
[310185922,1704393041096,-22673.10956563,0.00032776,3]
[310185924,1704393041106,-175.823702,0.00032776,2]
[310185926,1704393041115,-572.33880903,0.00032776,4]
[310185928,1704393041124,-151.69832526,0.00032776,2]
[310185931,1704393041133,-191.71356892,0.00032776,6]
[310185933,1704393041143,-363.11,0.00032815,2]
[310185935,1704393041152,-324.05319552,0.00032848,2]
[310185937,1704393041161,-206.29797334,0.00032866,2]
[310185939,1704393041170,-288.16072221,0.00032873,2]
[310185941,1704393041180,-264.60341248,0.00032874,4]
[310185943,1704393041190,-383.17732311,0.00032874,4]
[310185945,1704393041199,-155.0,0.00032874,4]
[310185947,1704393041209,-262.19433483,0.00032874,4]
[310185948,1704393041218,-1449.46206997,0.00032874,2]
[310185950,1704393041227,-190.37542036,0.00032874,4]
[310185952,1704393041237,-6260.33740911,0.00032875,2]
[310185954,1704393041246,-418.0569439,0.00032875,4]
[310185957,1704393041256,-3313.16034249,0.00032875,4]
[310185959,1704393041266,-526.50745505,0.00032875,2]
[310185960,1704393041275,-155.20260064,0.00032875,4]
[310185962,1704393041284,-500.0,0.00032876,2]
[310185964,1704393041293,-500.0,0.00032876,2]
[310185966,1704393041302,-500.0,0.00032876,2]
[310185969,1704393041311,-500.0,0.00032876,2]
[310185970,1704393041321,-500.0,0.00032876,2]
[310185972,1704393041330,-500.0,0.00032876,2]
[310185975,1704393041340,-500.0,0.00032876,2]
[310185977,1704393041351,-500.0,0.00032876,2]
[310185979,1704393041361,-500.0,0.00032876,2]
[310185981,1704393041370,-500.0,0.00032876,2]
[310185983,1704393041379,-500.0,0.00032876,2]
[310185985,1704393041388,-500.0,0.00032876,2]
[310185987,1704393041398,-500.0,0.00032876,2]
[310185989,1704393041407,-361.19650368,0.00032876,2]
[310185991,1704393041415,-500.0,0.00032876,2]
[310185993,1704393041424,-510.82395962,0.00032876,2]
[310185995,1704393041433,-500.0,0.00032876,2]
[310185997,1704393041442,-430.08321917,0.00032876,2]
[310185999,1704393041452,-500.0,0.00032876,2]
[310186001,1704393041462,-618.28983289,0.00032876,2]
[310186003,1704393041471,-500.0,0.00032876,2]
[310186004,1704393041481,-500.0,0.00032876,2]
[310186006,1704393041490,-500.0,0.00032876,2]
[310186008,1704393041499,-500.0,0.00032876,2]
[310186010,1704393041508,-500.0,0.00032876,2]
[310186012,1704393041518,-500.0,0.00032876,2]
[310186015,1704393041528,-490.79757793,0.00032876,2]
[310186017,1704393041537,-500.0,0.00032876,2]
[310186018,1704393041548,-500.0,0.00032876,2]
[310186020,1704393041559,-500.0,0.00032876,2]
[310186023,1704393041569,-500.0,0.00032876,2]
[310186024,1704393041578,-500.0,0.00032876,2]
[310186027,1704393041587,-500.0,0.00032876,2]
[310186029,1704393041596,-515.82837364,0.00032876,2]
[310186030,1704393041605,-500.0,0.00032876,2]
[310186032,1704393041614,-500.0,0.00032876,2]
[310186034,1704393041623,-500.0,0.00032876,2]
[310186036,1704393041633,-500.0,0.00032876,2]
[310186038,1704393041642,-500.0,0.00032876,2]
[310186040,1704393041651,-500.0,0.00032876,2]
[310186042,1704393041660,-500.0,0.00032876,2]
[310186045,1704393041670,-546.08921994,0.00032876,2]
[310186046,1704393041679,-500.0,0.00032876,2]
[310186048,1704393041688,-500.0,0.00032876,2]
[310186050,1704393041698,-521.94539508,0.00032876,2]
[310186053,1704393041707,-500.0,0.00032876,2]
[310186055,1704393041717,-500.0,0.00032876,2]
[310186056,1704393041727,-500.0,0.00032876,2]
[310186058,1704393041736,-500.0,0.00032876,2]
[310186061,1704393041745,-500.0,0.00032876,2]
[310186063,1704393041755,-500.0,0.00032876,2]
[310186064,1704393041766,-500.0,0.00032876,2]
[310186067,1704393041775,-500.0,0.00032876,2]
[310186068,1704393041784,-500.0,0.00032876,2]
[310186071,1704393041794,-500.0,0.00032876,2]
[310186072,1704393041803,-500.0,0.00032876,2]
[310186074,1704393041812,-611.45287532,0.00032876,2]
[310186076,1704393041820,-500.0,0.00032876,2]
[310186078,1704393041830,-500.0,0.00032876,2]
[310186080,1704393041838,-500.0,0.00032876,2]
[310186082,1704393041847,-500.0,0.00032876,2]
[310186084,1704393041856,-500.0,0.00032876,2]
[310186086,1704393041865,-500.0,0.00032876,2]
[310186088,1704393041874,-500.0,0.00032876,2]
[310186090,1704393041883,-500.0,0.00032876,2]
[310186092,1704393041893,-500.0,0.00032876,2]
[310186094,1704393041902,-500.0,0.00032876,2]
[310186096,1704393041911,-500.0,0.00032876,2]
[310186098,1704393041920,-517.5051705,0.00032876,2]
[310186100,1704393041929,-500.0,0.00032876,2]
[310186102,1704393041938,-500.0,0.00032876,2]
[310186104,1704393041948,-500.0,0.00032876,2]
[310186107,1704393041958,-500.0,0.00032876,2]
[310186109,1704393041968,-500.0,0.00032876,2]
[310186111,1704393041978,-579.41055886,0.00032876,2]
[310186112,1704393041986,-500.0,0.00032876,2]
[310186114,1704393041996,-500.0,0.00032876,2]
[310186116,1704393042005,-278.52222877,0.00032876,2]
[310186118,1704393042015,-500.0,0.00032876,2]
[310186120,1704393042024,-500.0,0.00032876,2]
[310186122,1704393042033,-500.0,0.00032876,2]
[310186124,1704393042044,-500.0,0.00032876,2]
[310186126,1704393042054,-354.43390432,0.00032876,2]
[310186129,1704393042065,-500.0,0.00032876,2]
[310186131,1704393042076,-500.0,0.00032876,2]
[310186133,1704393042086,-500.0,0.00032876,2]
[310186135,1704393042096,-500.0,0.00032876,2]
[310186136,1704393042107,-500.0,0.00032876,2]
[310186138,1704393042117,-500.0,0.00032876,2]
[310186140,1704393042126,-500.0,0.00032876,2]
[310186143,1704393042136,-500.0,0.00032876,2]
[310186144,1704393042145,-500.0,0.00032876,2]
[310186146,1704393042155,-500.0,0.00032876,2]
[310186149,1704393042165,-501.04421057,0.00032876,2]
[310186150,1704393042176,-500.0,0.00032876,2]
[310186152,1704393042187,-500.0,0.00032876,2]
[310186155,1704393042199,-500.0,0.00032876,2]
[310186156,1704393042209,-500.0,0.00032876,2]
[310186158,1704393042220,-500.0,0.00032876,2]
[310186159,1704393042229,-500.0,0.00032876,2]
[310186160,1704393042238,-500.0,0.00032876,2]
[310186161,1704393042249,-500.0,0.00032876,2]
[310186162,1704393042258,-500.0,0.00032876,2]
[310186163,1704393042270,-500.0,0.00032876,2]
[310186164,1704393042280,-500.0,0.00032876,2]
[310186165,1704393042289,-500.0,0.00032876,2]
[310186166,1704393042299,-500.0,0.00032876,2]
[310186167,1704393042308,-500.0,0.00032876,2]
[310186169,1704393042318,-500.0,0.00032876,2]
[310186171,1704393042328,-500.0,0.00032876,2]
[310186173,1704393042337,-500.0,0.00032876,2]
[310186175,1704393042348,-500.0,0.00032876,2]
[310186177,1704393042357,-500.0,0.00032876,2]
[310186179,1704393042367,-500.0,0.00032876,2]
[310186181,1704393042376,-500.0,0.00032876,2]
[310186183,1704393042385,-500.0,0.00032876,2]
[310186185,1704393042395,-500.0,0.00032876,2]
[310186187,1704393042406,-500.0,0.00032876,2]
[310186189,1704393042415,-500.0,0.00032876,2]
[310186191,1704393042426,-500.0,0.00032876,2]
[310186193,1704393042435,-500.0,0.00032876,2]
[310186195,1704393042445,-500.0,0.00032876,2]
[310186197,1704393042455,-500.0,0.00032876,2]
[310186199,1704393042464,-500.0,0.00032876,2]
[310186201,1704393042474,-500.0,0.00032876,2]
[310186203,1704393042483,-513.54415755,0.00032876,2]
[310186205,1704393042493,-500.0,0.00032876,2]
[310186207,1704393042503,-500.0,0.00032876,2]
[310186209,1704393042516,-500.0,0.00032876,2]
[310186211,1704393042526,-500.0,0.00032876,2]
[310186213,1704393042535,-515.05313921,0.00032876,2]
[310186215,1704393042545,-500.0,0.00032876,2]
[310186217,1704393042555,-500.0,0.00032876,2]
[310186219,1704393042566,-500.0,0.00032876,2]
[310186221,1704393042575,-500.0,0.00032876,2]
[310186223,1704393042585,-500.0,0.00032876,2]
[310186225,1704393042595,-500.0,0.00032876,2]
[310186227,1704393042604,-300.0,0.00032876,2]
[310186229,1704393042614,-500.0,0.00032876,2]
[310186231,1704393042624,-500.0,0.00032876,2]
[310186233,1704393042634,-500.0,0.00032876,2]
[310186234,1704393042644,-500.0,0.00032876,2]
[310186236,1704393042654,-500.0,0.00032876,2]
[310186238,1704393042663,-452.02900227,0.00032876,2]
[310186240,1704393042673,-500.0,0.00032876,2]
[310186242,1704393042682,-500.0,0.00032876,2]
[310186244,1704393042692,-500.0,0.00032876,2]
[310186247,1704393042702,-500.0,0.00032876,2]
[310186248,1704393042712,-500.0,0.00032876,2]
[310186251,1704393042722,-500.0,0.00032876,2]
[310186253,1704393042731,-517.06545411,0.00032876,2]
[310186254,1704393042741,-500.0,0.00032876,2]
[310186257,1704393042751,-500.0,0.00032876,2]
[310186258,1704393042760,-500.0,0.00032876,2]
[310186260,1704393042771,-500.0,0.00032876,2]
[310186262,1704393042781,-500.0,0.00032876,2]
[310186264,1704393042790,-500.0,0.00032876,2]
[310186266,1704393042800,-500.0,0.00032876,2]
[310186268,1704393042809,-500.0,0.00032876,2]
[310186270,1704393042818,-500.0,0.00032876,2]
[310186272,1704393042826,-500.0,0.00032876,2]
[310186274,1704393042836,-500.0,0.00032876,2]
[310186276,1704393042845,-500.0,0.00032876,2]
[310186278,1704393042854,-500.0,0.00032876,2]
[310186280,1704393042863,-500.0,0.00032876,2]
[310186282,1704393042872,-500.0,0.00032876,2]
[310186284,1704393042882,-500.0,0.00032876,2]
[310186286,1704393042891,-500.0,0.00032876,2]
[310186288,1704393042900,-500.0,0.00032876,2]
[310186290,1704393042910,-500.0,0.00032876,2]
[310186292,1704393042919,-500.0,0.00032876,2]
[310186294,1704393042927,-618.77547249,0.00032876,2]
[310186296,1704393042936,-503.97457147,0.00032876,2]
[310186298,1704393042945,-500.0,0.00032876,2]
[310186300,1704393042954,-500.0,0.00032876,2]
[310186302,1704393042964,-500.0,0.00032876,2]
[310186304,1704393042972,-500.0,0.00032876,2]
[310186330,1704393043190,-500.0,0.00032876,2]
[310186332,1704393043200,-500.0,0.00032876,2]
[310186334,1704393043210,-500.0,0.00032876,2]
[310186336,1704393043219,-500.0,0.00032876,2]
[310186338,1704393043228,-500.0,0.00032876,2]
[310186340,1704393043238,-500.0,0.00032876,2]
[310186342,1704393043247,-500.0,0.00032876,2]
[310186344,1704393043256,-500.0,0.00032876,2]
[310186346,1704393043266,-500.0,0.00032876,2]
[310186348,1704393043277,-524.74959744,0.00032876,2]
[310186350,1704393043287,-500.0,0.00032876,2]
[310186352,1704393043296,-500.0,0.00032876,2]
[310186354,1704393043307,-500.0,0.00032876,2]
[310186356,1704393043316,-500.0,0.00032876,2]
[310186360,1704393043325,-500.0,0.00032876,2]
[310186364,1704393043335,-500.0,0.00032876,2]
[310186367,1704393043345,-405.47602172,0.00032876,2]
[310186368,1704393043355,-500.0,0.00032876,2]
[310186370,1704393043365,-500.0,0.00032876,2]
[310186371,1704393043374,-500.0,0.00032876,2]
[310186372,1704393043384,-500.0,0.00032876,2]
[310186373,1704393043394,-500.0,0.00032876,2]
[310186374,1704393043405,-500.0,0.00032876,2]
[310186375,1704393043415,-500.0,0.00032876,2]
[310186376,1704393043425,-500.0,0.00032876,2]
[310186379,1704393043437,-500.0,0.00032876,2]
[310186380,1704393043447,-500.0,0.00032876,2]
[310186382,1704393043457,-500.0,0.00032876,2]
[310186384,1704393043467,-500.0,0.00032876,2]
[310186386,1704393043476,-500.0,0.00032876,2]
[310186388,1704393043486,-500.0,0.00032876,2]
[310186390,1704393043496,-500.0,0.00032876,2]
[310186392,1704393043506,-500.0,0.00032876,2]
[310186394,1704393043520,-500.0,0.00032876,2]
[310186396,1704393043535,-500.0,0.00032876,2]
[310186398,1704393043548,-534.44554653,0.00032876,2]
[310186400,1704393043566,-500.0,0.00032876,2]
[310186402,1704393043586,-500.0,0.00032876,2]
[310186404,1704393043602,-500.0,0.00032876,2]
[310186406,1704393043611,-500.0,0.00032876,2]
[310186407,1704393043621,-500.0,0.00032876,2]
[310186409,1704393043633,-500.0,0.00032876,2]
[310186410,1704393043643,-500.0,0.00032876,2]
[310186411,1704393043653,-500.0,0.00032876,2]
[310186412,1704393043663,-560.67319069,0.00032876,2]
[310186413,1704393043672,-510.70485595,0.00032876,2]
[310186414,1704393043682,-500.0,0.00032876,2]
[310186415,1704393043693,-500.0,0.00032876,2]
[310186416,1704393043703,-500.0,0.00032876,2]
[310186417,1704393043713,-500.0,0.00032876,2]
[310186418,1704393043724,-500.0,0.00032876,2]
[310186419,1704393043733,-500.0,0.00032876,2]
[310186420,1704393043743,-500.0,0.00032876,2]
[310186421,1704393043752,-500.0,0.00032876,2]
[310186422,1704393043762,-500.0,0.00032876,2]
[310186423,1704393043775,-500.0,0.00032876,2]
[310186424,1704393043786,-500.0,0.00032876,2]
[310186425,1704393043798,-500.0,0.00032876,2]
[310186427,1704393043808,-500.0,0.00032876,2]
[310186429,1704393043820,-500.0,0.00032876,2]
[310186432,1704393043831,-500.0,0.00032876,2]
[310186434,1704393043841,-500.0,0.00032876,2]
[310186436,1704393043852,-500.0,0.00032876,2]
[310186438,1704393043863,-500.0,0.00032876,2]
[310186440,1704393043873,-500.0,0.00032876,2]
[310186442,1704393043883,-500.0,0.00032876,2]
[310186444,1704393043894,-500.0,0.00032876,2]
[310186447,1704393043904,-500.0,0.00032876,2]
[310186448,1704393043915,-500.0,0.00032876,2]
[310186450,1704393043926,-500.0,0.00032876,2]
[310186451,1704393043936,-500.0,0.00032876,2]
[310186452,1704393043948,-500.0,0.00032876,2]
[310186453,1704393043958,-500.0,0.00032876,2]
[310186454,1704393043969,-500.0,0.00032876,2]
[310186455,1704393043978,-525.52563907,0.00032876,2]
[310186456,1704393043988,-500.0,0.00032876,2]
[310186457,1704393043997,-500.0,0.00032876,2]
[310186458,1704393044006,-500.0,0.00032876,2]
[310186459,1704393044015,-500.0,0.00032876,2]
[310186460,1704393044024,-500.0,0.00032876,2]
[310186461,1704393044033,-500.0,0.00032876,2]
[310186462,1704393044042,-500.0,0.00032876,2]
[310186463,1704393044051,-500.0,0.00032876,2]
[310186464,1704393044060,-500.0,0.00032876,2]
[310186465,1704393044069,-500.0,0.00032876,2]
[310186466,1704393044078,-500.0,0.00032876,2]
[310186467,1704393044087,-500.0,0.00032876,2]
[310186468,1704393044096,-500.0,0.00032876,2]
[310186469,1704393044105,-500.0,0.00032876,2]
[310186470,1704393044114,-500.0,0.00032876,2]
[310186471,1704393044123,-500.0,0.00032876,2]
[310186472,1704393044132,-500.0,0.00032876,2]
[310186473,1704393044141,-500.0,0.00032876,2]
[310186474,1704393044150,-500.0,0.00032876,2]
[310186475,1704393044159,-500.0,0.00032876,2]
[310186476,1704393044169,-152.50120071,0.00032876,2]
[310186477,1704393044178,-500.0,0.00032876,2]
[310186478,1704393044187,-500.0,0.00032876,2]
[310186479,1704393044196,-500.0,0.00032876,2]
[310186480,1704393044208,-500.0,0.00032876,2]
[310186481,1704393044218,-500.0,0.00032876,2]
[310186482,1704393044228,-500.0,0.00032876,2]
[310186483,1704393044239,-500.0,0.00032876,2]
[310186484,1704393044248,-507.80015062,0.00032876,2]
[310186485,1704393044257,-500.0,0.00032876,2]
[310186486,1704393044266,-500.0,0.00032876,2]
[310186487,1704393044275,-500.0,0.00032876,2]
[310186488,1704393044285,-509.42524193,0.00032876,2]
[310186489,1704393044295,-500.0,0.00032876,2]
[310186490,1704393044304,-500.0,0.00032876,2]
[310186491,1704393044313,-500.0,0.00032876,2]
[310186492,1704393044322,-500.0,0.00032876,2]
[310186493,1704393044331,-500.0,0.00032876,2]
[310186494,1704393044340,-500.0,0.00032876,2]
[310186495,1704393044350,-500.0,0.00032876,2]
[310186496,1704393044360,-976.77,0.00032876,2]
[310186497,1704393044369,-231.91039953,0.00032876,2]
[310186498,1704393044378,-500.0,0.00032876,2]
[310186499,1704393044388,-500.0,0.00032876,2]
[310186500,1704393044397,-500.0,0.00032876,2]
[310186501,1704393044408,-500.0,0.00032876,2]
[310186502,1704393044417,-500.0,0.00032876,2]
[310186503,1704393044426,-500.0,0.00032876,2]
[310186504,1704393044435,-500.0,0.00032876,2]
[310186505,1704393044445,-402.77112052,0.00032876,2]
[310186506,1704393044473,-97.22887948,0.00032876,2]
[310186507,1704393044482,-500.0,0.00032876,2]
[310186508,1704393044491,-500.0,0.00032876,2]
[310186509,1704393044500,-47.27112051,0.00032876,2]
[310186510,1704393044511,-361.040035,0.00032876,2]
[310186511,1704393044525,-91.68884449,0.00032876,2]
[310186512,1704393044534,-500.0,0.00032876,2]
[310186513,1704393044542,-500.0,0.00032876,2]
[310186514,1704393044552,-6.91115551,0.00032876,2]
[310186515,1704393045103,-493.08884449,0.00032876,2]
[310186516,1704393045112,-500.0,0.00032876,2]
[310186517,1704393045121,-500.0,0.00032876,2]
[310186518,1704393045131,-500.0,0.00032876,2]
[310186519,1704393045141,-106.86115551,0.00032876,2]
[310186520,1704393045153,-393.13884449,0.00032876,2]
[310186521,1704393045162,-500.0,0.00032876,2]
[310186522,1704393045171,-164.15819506,0.00032876,2]
[310186523,1704393045181,-500.0,0.00032876,2]
[310186524,1704393045190,-500.0,0.00032876,2]
[310186525,1704393045200,-287.75089431,0.00032876,2]
[310186526,1704393045216,-212.24910569,0.00032876,2]
[310186527,1704393045225,-500.0,0.00032876,2]
[310186528,1704393045234,-500.0,0.00032876,2]
[310186529,1704393045243,-500.0,0.00032876,2]
[310186530,1704393045252,-500.0,0.00032876,2]
[310186531,1704393045262,-500.0,0.00032876,2]
[310186532,1704393045271,-500.0,0.00032876,2]
[310186533,1704393045280,-500.0,0.00032876,2]
[310186534,1704393045289,-500.0,0.00032876,2]
[310186535,1704393045298,-500.0,0.00032876,2]
[310186536,1704393045307,-500.0,0.00032876,2]
[310186537,1704393045317,-500.0,0.00032876,2]
[310186538,1704393045326,-500.0,0.00032876,2]
[310186539,1704393045335,-500.0,0.00032876,2]
[310186540,1704393045345,-500.0,0.00032876,2]
[310186541,1704393045354,-500.0,0.00032876,2]
[310186542,1704393045363,-500.0,0.00032876,2]
[310186543,1704393045373,-500.0,0.00032876,2]
[310186544,1704393045382,-281.64542151,0.00032876,2]
[310186545,1704393045393,-500.0,0.00032876,2]
[310186546,1704393045402,-441.5567688,0.00032876,2]
[310186547,1704393045419,-58.4432312,0.00032876,2]
[310186548,1704393045429,-500.0,0.00032876,2]
[310186549,1704393045438,-500.0,0.00032876,2]
[310186550,1704393045447,-500.0,0.00032876,2]
[310186551,1704393045457,-500.0,0.00032876,2]
[310186552,1704393045468,-500.0,0.00032876,2]
[310186553,1704393045478,-480.49641337,0.00032876,2]
[310186554,1704393045487,-500.0,0.00032876,2]
[310186555,1704393045498,-323.1017798,0.00032876,2]
[310186556,1704393045508,-500.0,0.00032876,2]
[310186557,1704393045520,-648.96,0.00032876,2]
[310186558,1704393045528,-500.0,0.00032876,2]
[310186559,1704393045538,-500.0,0.00032876,2]
[310186560,1704393045548,-500.0,0.00032876,2]